Cogmind - Beta 15 @@@ ROGUE MODE // 2025.05.11 @ 15:19:38 Player: 7604 Result: Destroyed by Lightning with EMDS Performance ------------- Evolutions (4) 2000 Regions Visited (20) 4000 Robots Destroyed (250) 1250 Value Destroyed (8273) 8273 Prototype IDs (79) 1580 Alien Tech Used (0) 0 Bonus (5476) 5476 TOTAL SCORE: 22579 Bonus ------- High Alert Combat Kills 226 Follower Combat Kills 1913 Network Hubs Disabled 200 Aligned with FarCom 300 Met Imprinter 300 Destroyed Z-Imprinter 1000 Met Zhirov 300 Built Enhanced Grunts 300 A7 Reached Mainframe 300 Met R17 at Cetus 500 Read Decrypted Archives 300 Friendly Fire -163 Cogmind --------- Core Integrity 0/850 Matter 228/300 Energy 100/100 System Corruption 44% Temperature Cool (0) Movement Core (50) Location -6/Hub_04(d) Parts ------- > --- POWER (2) -------- (None) > --- PROPULSION (5) --- (None) > --- UTILITY (6) ------ (None) > --- WEAPON (2) ------- (None) > --- INVENTORY (5) ---- XL Autogun Array Peak State ------------ > --- POWER ------------ Quantum Reactor Quantum Reactor > --- PROPULSION ------- Medium Treads Centrium Heavy Treads Centrium Heavy Treads > --- UTILITY ---------- Large Storage Unit Experimental Reaction Control System Hardened Heavy Armor Plating Centrium Medium Armor Plating Advanced Force Field > --- WEAPON ----------- Advanced KE Penetrator Advanced KE Penetrator > --- INVENTORY -------- Light Fission Core Centrium Heavy Treads Experimental Heat Sink Zionite Biocell Zionite Metafield Generator EM Shield Advanced KE Penetrator Advanced KE Penetrator XL Autogun Array Heavy Flak Cannon Heavy Rocket Launcher [Rating: 121] Favorites ----------- Power Micro Nuclear Core Engine Improved Deuterium Engine Power Core Micro Nuclear Core Reactor Zionite Light DM Reactor Propulsion Light Treads Treads Light Treads Leg Improved Titanium Leg Wheel Compact Wheel Hover Unit Zionite Glidesys I Flight Unit Biomechanical Wings Utility Huge Storage Unit Device Seismic Detector Storage Huge Storage Unit Processor Improved Signal Interpreter Hackware Hacking Suite Protection Improved Medium Armor Plating Weapon Plasma Cannon Energy Gun Improved EM Shotgun Energy Cannon Plasma Cannon Ballistic Gun Improved KE Penetrator Ballistic Cannon Improved Light Cannon Launcher Proton Missile Launcher Special Weapon Plasma Cutter Impact Weapon Heavy Flail Slashing Weapon Chainsword Piercing Weapon CR-A16's Pointy Stick Special Melee Weapon Improved Datajack Build | -11 -10 -10 -9 -9 -9 -8 -8 -7 -7 -7 -7 -7 -6 -6 -6 -6 -6 -6 -6 -6 ------- Run | Yrd Mat Min Mat Min Exi Min Mat Fac Low Low Zio Dee Pro Fac Was Fac Ext Cet Arc Hub Slots Evolved 8 | . . . 2 . . . 2 2 . . . . . 2 . . . . . . Power 1 | . . . . . . . . 1 . . . . . . . . . . . . Propulsion 3 | . . . . . . . 1 1 . . . . . 1 . . . . . . Utility 4 | . . . 2 . . . 1 . . . . . . 1 . . . . . . Weapon . | . . . . . . . . . . . . . . . . . . . . . Parts Attached 263 | 7 9 1 33 3 . 6 24 21 10 5 2 20 9 49 4 10 25 17 . 8 Power 34 | 1 . . 4 1 . . 3 4 1 . . 2 1 7 1 . 5 3 . 1 Engine 12 | 1 . . 3 . . . 2 1 1 . . . . 3 . . 1 . . . Core 15 | . . . 1 1 . . 1 3 . . . . 1 3 . . 4 . . 1 Reactor 7 | . . . . . . . . . . . . 2 . 1 1 . . 3 . . Propulsion 87 | 2 4 . 9 . . 2 4 7 1 . . 7 5 23 . 5 11 5 . 2 Treads 28 | 2 4 . 6 . . 1 3 1 1 . . 1 . 2 . 1 . 4 . 2 Leg 17 | . . . . . . . . . . . . 1 3 1 . . 11 1 . . Wheel 22 | . . . 1 . . 1 1 3 . . . . . 12 . 4 . . . . Hover 7 | . . . . . . . . . . . . 5 2 . . . . . . . Flight 13 | . . . 2 . . . . 3 . . . . . 8 . . . . . . Utility 91 | 2 2 1 10 . . 4 11 7 7 2 . 7 2 15 2 3 8 4 . 4 Device 36 | 1 1 1 4 . . 2 2 2 3 2 . 4 . 4 1 2 3 2 . 2 Storage 10 | 1 1 . 1 . . . 1 . . . . 1 . 2 . . 2 1 . . Processor 8 | . . . 1 . . . 3 . . . . . . 2 1 . . . . 1 Hackware 12 | . . . . . . . 3 2 . . . . . 6 . . 1 . . . Protection 25 | . . . 4 . . 2 2 3 4 . . 2 2 1 . 1 2 1 . 1 Artifact . | . . . . . . . . . . . . . . . . . . . . . Weapon 51 | 2 3 . 10 2 . . 6 3 1 3 2 4 1 4 1 2 1 5 . 1 Energy Gun 13 | 1 1 . 4 1 . . . . . . . 3 . 2 . . . 1 . . Energy Cannon 8 | . . . . . . . 2 1 . 1 . 1 . 2 . . . 1 . . Ballistic Gun 10 | 1 . . 1 . . . 1 1 . 1 . . . . . 1 . 3 . 1 Ballistic Cannon 6 | . 1 . 3 . . . 1 . . . . . . . . . 1 . . . Launcher 4 | . . . . . . . 1 . 1 1 . . 1 . . . . . . . Special Weapon 2 | . 1 . . . . . . . . . 1 . . . . . . . . . Impact Weapon 2 | . . . 1 . . . . . . . . . . . . 1 . . . . Slashing Weapon 2 | . . . 1 . . . 1 . . . . . . . . . . . . . Piercing Weapon 1 | . . . . . . . . . . . 1 . . . . . . . . . Special Melee Weapon 3 | . . . . 1 . . . 1 . . . . . . 1 . . . . . Unidentified Prototypes 24 | . . . 2 . . . . 1 . . . 12 . 2 . . . 7 . . Corrupted Parts 6 | . . . . . . . . . . . . . . . . . . 5 . 1 System Corruption 33 | . . . . . . . . . . . . . . . . . . 27 . 6 Parts Lost 56 | . . . 2 . . 3 3 . . 1 . 6 6 13 . . 3 1 2 16 Power 11 | . . . 1 . . . 1 . . . . . 1 3 . . 1 . . 4 Propulsion 18 | . . . . . . . 1 . . 1 . 4 4 5 . . . . . 3 Utility 20 | . . . 1 . . 3 . . . . . 2 . 5 . . 2 . 2 5 Weapon 7 | . . . . . . . 1 . . . . . 1 . . . . 1 . 4 Highest Loss Streak 8 | . . . 1 . . 2 2 . . 1 . 4 3 7 . . 1 1 2 8 To Critical Strikes 1 | . . . . . . . . . . . . . . . . . . 1 . . Average Backups 17 | 3 12 15 19 25 23 20 20 18 19 20 19 20 19 14 12 8 6 11 11 8 Power . | . 1 2 1 1 1 1 1 . . 1 . 1 2 1 1 . . 1 1 . Propulsion 3 | . 2 3 6 8 7 7 5 1 2 2 2 1 . 2 1 . . . 1 1 Utility 6 | 1 4 5 6 8 7 5 6 8 9 7 7 10 11 7 7 5 3 5 4 2 Weapon 5 | 1 3 4 4 6 6 5 6 5 6 7 8 5 3 3 2 2 3 4 5 4 Tool/Special . | . . . . . . . . . . . . . . . . . . . . . Unused Backups 37 | . 1 1 8 . . 1 5 7 1 1 1 2 1 4 1 . . 1 . 2 Power 3 | . . . 1 . . . . 1 . . . . . . 1 . . . . . Propulsion 6 | . . 1 3 . . . 1 1 . . . . . . . . . . . . Utility 17 | . . . 1 . . 1 2 3 1 . 1 2 1 4 . . . 1 . . Weapon 11 | . 1 . 3 . . . 2 2 . 1 . . . . . . . . . 2 Tool/Special . | . . . . . . . . . . . . . . . . . . . . . Average Slot Usage (%) 96 | . 100 99 99 100 100 91 99 98 99 99 99 96 80 91 83 89 97 81 75 58 Engine 4 | . 14 14 6 . . . 2 1 7 15 7 1 . 2 . . 1 . . . Core 6 | . . . 4 11 11 11 6 12 6 . 6 7 7 6 6 6 11 1 . 4 Reactor 1 | . . . . . . . . . . . . 5 2 1 . 3 . 11 13 5 Treads 18 | . 28 28 21 22 22 16 25 19 23 23 30 25 . 1 . 1 . 17 20 17 Leg 3 | . . . . . . . . . . . . . 2 5 . . 31 7 . . Wheel 2 | . . . . . . 5 1 6 7 6 . . . 11 . 4 1 . . . Hover 1 | . . . . . . . . . . . . 3 15 . . . . . . . Flight 1 | . . . . . . . . 3 . . . . . 9 26 18 . . . . Device 17 | . 14 13 21 10 11 17 10 12 29 24 29 3 22 11 6 14 19 12 9 2 Storage 8 | . 14 14 11 11 11 11 9 6 7 7 7 7 7 6 6 6 6 6 6 6 Hackware 3 | . . . . . . . 13 15 . . . . . 16 20 7 . . . . Protection 8 | . . . 11 22 22 7 8 2 . 5 . 26 7 . . 4 8 13 13 5 Energy Gun 3 | . 14 14 3 16 . 17 2 . . . . 3 2 1 . . . . . . Energy Cannon 2 | . . . . . . . 3 9 6 10 7 2 . . . . . . . . Ballistic Gun 1 | . 2 . 1 . . . . . . . . 1 . . . 3 5 6 13 12 Ballistic Cannon 4 | . 10 10 15 5 . . 10 . . . . . . . . . 5 1 . . Slashing Weapon 1 | . . . . . 11 4 . 3 7 3 . . . . . . . . . . Piercing Weapon 1 | . . . . . . . . . . . . . 7 5 6 5 . 1 . . Special Melee Weapon 1 | . . . . . 11 . . 1 . . 6 . 1 2 3 2 . . . . Peak Build Rating 121 | 7 8 8 26 24 29 31 42 54 54 61 60 88 88 76 83 91 91 121 121 109 Average Rating 45 | 6 7 7 21 23 23 27 34 45 45 49 46 63 59 62 73 78 84 99 115 85 On Entrance 49 | . 7 8 8 22 22 29 31 42 47 54 48 60 88 62 69 76 62 90 121 103 Naked Turns 1 | . . . . . . . . . . . . . . . . . . . . 1 Heaviest Build 135 | 14 31 31 100 100 98 95 110 114 129 135 134 134 122 108 48 57 100 117 116 101 Greatest Support 188 | 40 40 40 43 40 40 40 60 60 16 88 88 88 60 64 32 64 119 188 188 188 Greatest Overweight (x) 36 | . . . 5 2 2 9 9 11 8 8 36 5 6 10 1 3 1 . . . Average Overweight (x) 1 | . . . 1 2 2 6 1 5 6 6 2 1 2 . . . . . . . Largest Inventory Capacity 25 | 8 15 15 25 25 25 25 25 25 25 25 25 25 25 25 15 15 15 15 15 15 Average Capacity 21 | 7 14 15 22 25 25 25 25 24 25 25 25 25 25 19 15 11 10 15 15 14 Most Carried 25 | 7 15 15 25 25 25 25 25 25 25 25 25 25 25 25 15 15 14 15 15 15 Average Carried 20 | 3 12 14 19 25 24 24 24 22 23 24 24 24 24 18 14 11 9 14 15 12 Final Capacity 25 | 8 15 15 25 25 25 25 25 25 25 25 25 25 25 15 15 10 15 15 15 5 Final Carried 25 | 7 15 15 25 25 25 25 25 25 25 25 25 25 25 15 15 10 14 15 15 4 Class Distribution -------------------- 50% | Scavenger-Mutant 18% | Mutant 14% | Infiltrator-Mutant 4% | Hacker-Mutant 3% | Skirmisher 3% | Hacker-Sprinter Dominant Class ---------------- Mutant | -10/Materials Mutant | -10/Mines Mutant | -9/Materials Scavenger-Mutant | -9/Mines Scavenger-Mutant | -9/Exiles Scavenger-Mutant | -8/Mines Hacker-Mutant | -8/Materials Scavenger-Mutant | -7/Factory Scavenger-Mutant | -7/Lower Caves Scavenger-Mutant | -7/Lower Caves Infiltrator-Mutant | -7/Zion Scavenger-Mutant | -7/Deep Caves Infiltrator-Mutant | -6/Proximity Caves Scavenger-Mutant | -6/Factory Hacker-Sprinter | -6/Waste Scavenger-Mutant | -6/Factory Scavenger-Mutant | -6/Extension Scavenger-Mutant | -6/Cetus Scavenger-Mutant | -6/Archives Scavenger-Mutant | -6/Hub_04(d) Resources | -11 -10 -10 -9 -9 -9 -8 -8 -7 -7 -7 -7 -7 -6 -6 -6 -6 -6 -6 -6 -6 ----------- Run | Yrd Mat Min Mat Min Exi Min Mat Fac Low Low Zio Dee Pro Fac Was Fac Ext Cet Arc Hub Matter Collected 9340 | 293 190 103 1412 175 . 215 557 476 136 429 70 424 366 931 126 203 2241 333 . 660 Remotely . | . . . . . . . . . . . . . . . . . . . . . Salvage Created 10771 | 173 224 . 1245 196 . 423 521 645 177 843 . 424 69 1470 . 439 2339 148 5 1430 Parts 539 | 24 18 . 80 23 . 25 24 40 6 22 . 33 7 62 . 16 93 9 . 57 Haulers Intercepted 11 | . 1 . 5 . . . . 1 . . . . . 1 . . 2 . . 1 Recyclers Shooed 14 | 1 1 . 1 . . . . 2 . . . . . 6 . 1 2 . . . Parts Field Recycled . | . . . . . . . . . . . . . . . . . . . . . Retrieved Matter . | . . . . . . . . . . . . . . . . . . . . . Parts Self-Destructed 33 | . . . . . . . . . 2 20 . . 11 . . . . . . . Prevented 5 | . . . . . . . . . 4 1 . . . . . . . . . . Kills | -11 -10 -10 -9 -9 -9 -8 -8 -7 -7 -7 -7 -7 -6 -6 -6 -6 -6 -6 -6 -6 ------- Run | Yrd Mat Min Mat Min Exi Min Mat Fac Low Low Zio Dee Pro Fac Was Fac Ext Cet Arc Hub Combat Hostiles Destroyed 168 | . 10 . 27 8 . 12 13 5 3 14 . 7 2 10 . . 40 1 . 16 Melee 5 | . . . . . . . . . . . . . 1 2 . . 2 . . . Guns 77 | . 5 . 6 5 . 11 . . . 9 . 6 1 5 . . 15 1 . 13 Cannons 57 | . 3 . 20 3 . . 5 4 . 2 . . . 2 . . 17 . . 1 AOE 23 | . 2 . . . . . 7 . 3 3 . . . . . . 6 . . 2 Classes Destroyed 22 | 2 4 . 4 . . 1 2 2 . 2 . 3 1 . . . 1 . . . Worker 11 | 1 . . 3 . . . . . . . . . . 2 . . . . . 5 Builder 8 | . . . . . . . . 2 . . . . . 2 . . 2 . . 2 Tunneler 13 | 8 . . . 1 . 2 . . . . . . . 1 . . 1 . . . Hauler 11 | . 1 . 5 . . . . 1 . . . . . 1 . . 2 . . 1 Recycler 19 | . . . 2 1 . . . 3 . . . . . 5 . 3 3 . . 2 Minesweeper 1 | . . . . . . . . . . 1 . . . . . . . . . . Mechanic 3 | . . . . . . . 1 1 . 1 . . . . . . . . . . Operator 5 | . . . 2 . . . 1 1 . . . . . . . . 1 . . . Drone 1 | . . . . . . . . . . . . . 1 . . . . . . . Watcher 13 | . 3 . 4 . . . . 1 . . . . . . . 1 2 1 . 1 Swarmer 32 | . 9 . 7 8 . 8 . . . . . . . . . . . . . . Grunt 61 | . 1 . 11 . . 3 5 . 2 7 . . . 4 . . 21 . . 7 Brawler 9 | . . . 2 . . . 2 . . 2 . . . . . . 2 . . 1 Duelist 8 | . . . . . . . 1 . 1 3 . . . 1 . . . . . 2 Sentry 24 | . . . 7 . . . 4 1 . 1 . . . 1 . . 8 . . 2 Hunter 15 | . . . . . . 1 1 2 . . . . 1 2 . . 5 . . 3 Programmer 5 | . . . . . . . . 2 . . . . . 2 . . . . . 1 Behemoth 1 | . . . . . . . . . . . . . . . . . 1 . . . Cetus Guard 1 | . . . . . . . . . . . . . . . . . . 1 . . Z-Technician 5 | . . . . . . . . . . . . 5 . . . . . . . . Z-Light 2 | . . . . . . . . . . . . 2 . . . . . . . . Assembled 3 | . . . . . . . . . . . . 3 . . . . . . . . Golem 1 | . . . . . . . . . . . . 1 . . . . . . . . Thug 1 | . . . . . . . . . . . . . . . . . 1 . . . Guerrilla 3 | . . . . . . . . . . . . . . . . . 2 1 . . Mutant 1 | . . . . . . . . . . 1 . . . . . . . . . . Best Kill Streak 11 | 3 3 . 4 5 . 4 9 3 3 5 . 4 1 4 . 2 11 2 . 9 Combat Bots Only 8 | . 3 . 4 3 . 4 8 2 3 5 . 3 1 2 . . 7 1 . 5 Max Kills in Single Turn 7 | 1 2 . 1 2 . 2 3 1 1 2 . 1 1 1 . 1 2 1 . 7 Gunslinging 1 | . . . . 1 . 1 . . . . . . . . . . . . . . Exploded 3 | . 2 . . . . . 3 . 1 2 . . . . . . 1 . . 2 Melee 1 | . . . . . . . . . . . . . 1 1 . . 1 . . . Uniques/NPCs Destroyed 1 | . . . . . . . . . . . . 1 . . . . . . . . Z-Imprinter (-7/Deep Caves) Combat | -11 -10 -10 -9 -9 -9 -8 -8 -7 -7 -7 -7 -7 -6 -6 -6 -6 -6 -6 -6 -6 -------- Run | Yrd Mat Min Mat Min Exi Min Mat Fac Low Low Zio Dee Pro Fac Was Fac Ext Cet Arc Hub Hostile Shots Fired 1444 | . 69 . 143 50 . 50 66 44 6 66 4 57 37 174 . 39 340 12 8 279 Missed 451 | . 13 . 41 17 . 10 18 11 2 21 3 13 9 51 . 13 162 1 4 62 Hits 993 | . 56 . 102 33 . 40 48 33 4 45 1 44 28 123 . 26 178 11 4 217 Melee 16 | . . . 3 . . . 2 . . . . . . 1 . . . . . 10 Projectile 977 | . 56 . 99 33 . 40 46 33 4 45 1 44 28 122 . 26 178 11 4 207 Critical Strikes 37 | . 1 . 3 . . . 5 1 . 2 . . 1 4 . 1 4 3 . 12 Actively Blocked 1 | . . . . . . . . . . . . . . . . . . . . 1 Part Disruptions 2 | . . . . . . . . . . 1 . . . . . 1 . . . . Damage Taken 15176 | . 516 . 1160 283 . 512 942 324 70 799 18 1779 541 1633 39 404 1519 132 561 3944 Core 1790 | . 81 . 90 31 . 79 59 23 33 38 . 421 49 281 7 49 69 . . 480 Absorbed by Shields 1224 | . . . . . . . . . . . . . . . . . 1067 138 19 . Reduced by Siege Mode 159 | . . . . . . . . . . . . . . . . . . . . 159 Redirected to Shielding 127 | . . . 15 . . . . . . . . 76 12 . . . . . . 24 Ignored by Resistances 34 | . . . . . . . . . . . . . . . . . . . . 34 Regen/Repaired (Parts) 808 | . . . 184 . . . 118 329 . . . . . 82 32 . 63 . . . Core Remaining (%) 65 | 100 . 67 . . . 50 89 . . . . . 19 . . . . . . . Volleys Fired 617 | 23 46 1 114 13 . 17 27 16 5 14 . 37 36 32 . . 158 6 3 69 Largest 2 | 2 2 1 2 2 . 2 2 2 1 2 . 2 1 1 . . 2 2 2 2 Hottest 160 | 70 100 100 100 90 . 90 160 160 39 160 . 95 60 80 . . 77 70 70 79 Shots Fired 1142 | 46 90 1 210 26 . 34 46 32 5 67 . 70 36 40 . . 292 12 5 130 Gun 662 | 46 62 . 69 10 . 34 4 . . 43 . 52 33 29 . . 147 12 5 116 Cannon 430 | . 24 . 136 16 . . 38 32 . 14 . 11 . 11 . . 134 . . 14 Launcher 40 | . . . . . . . 4 . 5 10 . 7 3 . . . 11 . . . Special 10 | . 4 1 5 . . . . . . . . . . . . . . . . . Kinetic 768 | 23 42 . 160 16 . . 18 . . 43 . 30 . 8 . . 281 12 5 130 Thermal 194 | 23 48 1 35 . . . 20 32 . 14 . . . 21 . . . . . . Explosive 24 | . . . . . . . 4 . . 6 . . 3 . . . 11 . . . Electromagnetic 101 | . . . 15 10 . 34 4 . 5 4 . 18 . 11 . . . . . . Phasic 55 | . . . . . . . . . . . . 22 33 . . . . . . . Robot Hit Streak 22 | 7 4 . 10 4 . 8 15 8 1 18 . 22 5 12 . . 15 6 3 10 Robot Miss Streak 10 | 2 4 . 4 4 . 5 3 2 1 3 . 2 7 2 . . 10 1 2 6 Penetration Max 1 | . . . . . . . . . . . . . . . . . 1 1 . 1 Secondary Targets 10 | . 2 . . 1 . 3 . . . . . . . . . . . . . 4 Max Gunslinging Chain 1 | . 1 . . 1 . 1 . . . . . . . . . . . . . 1 Autonomous 82 | . . . . . . . . . . 43 . 30 . 9 . . . . . . Shots Hit Robots 788 | 27 36 . 129 11 4 27 35 29 3 55 4 39 11 69 . 8 206 11 3 81 Core Hits 496 | 11 20 . 54 10 . 21 24 13 5 29 . 18 3 38 . 5 184 7 . 54 Critical Kills 12 | . . . . . . . 1 1 . . . . . . . . 2 . . 8 Critical Parts Destroyed 9 | . . . . . . . . . . 1 . . . . . . 2 . 1 5 Critical Strikes 39 | 1 6 . 3 . . . 2 1 . 1 . 1 3 2 . . 4 . 1 14 Burn 7 | 1 5 . 1 . . . . . . . . . . . . . . . . . Meltdown 2 | . . . . . . . 1 1 . . . . . . . . . . . . Destroy 20 | . . . . . . . . . . 1 . . . . . . 4 . 1 14 Blast 3 | . 1 . 2 . . . . . . . . . . . . . . . . . Sever 1 | . . . . . . . 1 . . . . . . . . . . . . . Impale 3 | . . . . . . . . . . . . . 1 2 . . . . . . Intensify 3 | . . . . . . . . . . . . 1 2 . . . . . . . Melee Attacks 169 | . . . 4 . 4 3 2 20 2 8 5 . 4 83 . 28 5 1 . . Impact 2 | . . . 2 . . . . . . . . . . . . . . . . . Slashing 36 | . . . 2 . . 3 2 19 2 8 . . . . . . . . . . Piercing 117 | . . . . . . . . . . . 1 . 4 78 . 28 5 1 . . Sneak Attacks 59 | . . . . . 4 3 2 9 2 3 4 . 1 19 . 6 5 1 . . Combat Hostiles 2 | . . . . . . . . . . . . . 1 1 . . . . . . Follow-up Attacks . | . . . . . . . . . . . . . . . . . . . . . Damage Inflicted 25026 | 314 577 . 2653 250 . 604 1808 1120 315 2148 . 1179 392 2349 . 471 7168 379 76 3223 Guns 9846 | 314 304 . 780 80 . 420 74 . . 1003 . 1043 297 694 . . 2487 316 76 1958 Cannons 6920 | . 194 . 1679 170 . . 649 504 . 332 . 32 . 355 . . 2660 . . 345 Explosions 4582 | . 76 . 187 . . . 918 . 171 584 . 104 . . . . 1622 . . 920 Melee 3600 | . . . . . . 184 167 616 144 229 . . 95 1300 . 471 331 63 . . Ramming 78 | . 3 . 7 . . . . . . . . . . . . . 68 . . . Kinetic 12523 | 86 254 . 1921 170 . . 319 . . 1003 . 680 . 248 . . 5147 316 76 2303 Thermal 2967 | 228 272 . 468 . . . 717 504 . 332 . . . 446 . . . . . . Explosive 2601 | . . . 79 . . . 531 . . 369 . . . . . . 1622 . . . Electromagnetic 2597 | . 48 . 178 80 . 420 74 . 171 215 . 136 . 355 . . . . . 920 Impact . | . . . . . . . . . . . . . . . . . . . . . Slashing 1340 | . . . . . . 184 167 616 144 229 . . . . . . . . . . Piercing 2260 | . . . . . . . . . . . . . 95 1300 . 471 331 63 . . Phasic 660 | . . . . . . . . . . . . 363 297 . . . . . . . Highest Corruption 42 | . 2 2 6 6 6 6 . 1 1 . . . . 4 4 5 5 22 22 42 Average Corruption 4 | . 1 2 2 6 6 6 . 1 1 . . . . 2 4 3 4 13 22 22 Corruption Purged 15 | . . . . . . . . . 1 . . . . . . 4 5 5 . . Corruption Blocked . | . . . . . . . . . . . . . . . . . . . . . Effects 349 | . 13 6 50 43 26 35 . 11 8 . . . . 17 7 10 67 17 7 32 Message Errors 85 | . 1 1 12 16 9 10 . 2 3 . . . . 3 2 2 11 6 2 5 Matter Fused 74 | . 1 1 14 5 4 5 . 3 2 . . . . 7 2 3 15 3 2 7 Heat Flow Errors 41 | . 2 . 5 6 5 4 . 1 1 . . . . 2 . 1 11 . 1 2 Energy Discharges 42 | . 3 . 4 3 2 5 . 1 1 . . . . 2 . 3 11 2 . 5 Parts Rejected 5 | . . . 2 . . . . . . . . . . . . . 2 . . 1 Parts Fused 1 | . . . . . . . . . . . . . . . . . . . . 1 Data Loss (minor) 47 | . 2 3 7 5 4 5 . . 1 . . . . 3 2 1 9 3 . 2 Data Loss (major) 14 | . 1 1 2 2 1 1 . 1 . . . . . . . . 1 2 1 1 Misfires 16 | . 2 . 3 2 . 3 . 2 . . . . . . . . 4 . . . Alerts 9 | . 1 . . 2 1 . . 1 . . . . . . 1 . 1 1 . 1 Misdirections 2 | . . . . . . . . . . . . . . . . . . . . 2 Weapon Failures 13 | . . . 1 2 . 2 . . . . . . . . . . 2 . 1 5 Overload Shots . | . . . . . . . . . . . . . . . . . . . . . Overflow Damage 833 | . . . 12 3 . 69 60 146 34 89 . . . 208 . 74 40 . . 98 Projectiles 46 | . . . 12 3 . . 11 8 . . . . . 12 . . . . . . Explosions 150 | . . . . . . . 49 . . . . . . . . . 3 . . 98 Melee 637 | . . . . . . 69 . 138 34 89 . . . 196 . 74 37 . . . Knockbacks 97 | . . . 9 1 . . . . . . . . . . . . 76 . . 11 Impact . | . . . . . . . . . . . . . . . . . . . . . Kinetic 89 | . . . 8 1 . . . . . . . . . . . . 69 . . 11 Secondary 8 | . . . 1 . . . . . . . . . . . . . 7 . . . Self-Inflicted Damage 404 | . 34 . 73 . . . 145 . 6 14 . 40 . . . . . . . 92 Shots 13 | . 2 . 2 . . . 3 . 2 1 . 2 . . . . . . . 1 Rammed 4 | . 1 . 3 . . . . . . . . . . . . . . . . . Targets Rammed 8 | . 1 . 3 . . . . . . . . . . . . . 4 . . . Kicked 4 | . . . . . . . . . . . . . . . . . 4 . . . Crushed . | . . . . . . . . . . . . . . . . . . . . . Highest Temperature 423 | 90 210 20 238 275 272 277 270 220 112 114 . 370 224 238 . 106 423 220 418 223 Average Temperature 76 | 35 57 10 62 82 108 104 81 77 73 67 . 72 80 30 . 59 98 91 91 39 Received Heat Transfer 3064 | . 36 . 276 9 . 135 315 30 36 397 . 333 20 432 . . 491 12 26 516 Effects 4 | . . . . . . . 1 . . . . . . . . . 1 . 2 . Shutdowns 2 | . . . . . . . . . . . . . . . . . . . 2 . Energy Bleed 1 | . . . . . . . . . . . . . . . . . 1 . . . Interference 1 | . . . . . . . 1 . . . . . . . . . . . . . Siege Activations 1 | . . . . . . . . . . . . . . . . . . . . 1 Total Turns 43 | . . . . . . . . . . . . . . . . . . . . 43 Longest Duration 43 | . . . . . . . . . . . . . . . . . . . . 43 Martial Activations . | . . . . . . . . . . . . . . . . . . . . . Shielding Activations . | . . . . . . . . . . . . . . . . . . . . . Robots Disrupted 1 | . . . . . . . . . . . . . . 1 . . . . . . Combat Hostiles 1 | . . . . . . . . . . . . . . 1 . . . . . . Robots Corrupted 4 | . . . 1 . . 1 . . . . . 1 . 1 . . . . . . Combat Hostiles 4 | . . . 1 . . 1 . . . . . 1 . 1 . . . . . . Parts Fried 14 | . . . . . . 1 . . 2 . . . . 3 . . 1 . . 7 Impact Corruptions . | . . . . . . . . . . . . . . . . . . . . . Robots Melted 2 | . . . . . . . 1 1 . . . . . . . . . . . . Combat Hostiles 2 | . . . . . . . 1 1 . . . . . . . . . . . . Parts Melted 17 | . 4 . 1 . . . . 5 . 3 . . . 3 . . . . . 1 Heat Transferred 6425 | 740 1123 . 1112 . . . 900 950 . 650 . . . 950 . . . . . . Parts Sabotaged . | . . . . . . . . . . . . . . . . . . . . . Parts Stolen . | . . . . . . . . . . . . . . . . . . . . . Parts Stripped . | . . . . . . . . . . . . . . . . . . . . . Power Chain Reactions 3 | . 1 . 2 . . . . . . . . . . . . . . . . . Alert | -11 -10 -10 -9 -9 -9 -8 -8 -7 -7 -7 -7 -7 -6 -6 -6 -6 -6 -6 -6 -6 ------- Run | Yrd Mat Min Mat Min Exi Min Mat Fac Low Low Zio Dee Pro Fac Was Fac Ext Cet Arc Hub Maximum Alert Level 3 | . . . 2 . . . 1 . . . . . . 2 . 1 3 2 2 3 Low Security (%) 70 | 100 100 100 54 100 . 100 97 100 . . . . . 37 100 69 42 . 56 . Level 1 20 | . . . 34 . . . 2 . . . . . . 56 . 30 21 46 3 76 Level 2 9 | . . . 10 . . . . . . . . . . 6 . . 34 53 39 15 Level 3 . | . . . . . . . . . . . . . . . . . 2 . . 7 Level 4 . | . . . . . . . . . . . . . . . . . . . . . Level 5 . | . . . . . . . . . . . . . . . . . . . . . High Security . | . . . . . . . . . . . . . . . . . . . . . Max Security . | . . . . . . . . . . . . . . . . . . . . . Peak Influence 761 | 10 141 14 477 186 . 86 318 70 . . . . . 450 12 273 736 451 603 761 Initial 450 | . . 14 . 186 . . 17 70 . . . . . 450 8 . 101 408 150 203 Average 134 | 1 32 . 170 61 . 20 23 9 . . . . . 214 2 149 314 395 304 347 Influence Increases 8166 | 45 416 1 983 241 . 305 510 223 70 290 . . 65 949 31 692 1625 293 523 904 Destroy 0b10 Robot/C 4040 | . 200 . 540 180 . 240 260 100 60 260 . . 20 200 . 280 980 160 240 320 Destroy 0b10 Robot/NC 465 | 45 20 . 80 10 . 10 10 45 . 10 . . 5 55 . 40 60 10 10 55 Destroy Leader 804 | . 48 . 178 30 . 40 70 44 10 20 . . 10 62 . 54 154 . . 84 Allied During Kill 621 | . . . . 4 . . . . . . . . . . . 127 144 101 245 . Successful Hack 231 | . 20 . 46 . . . 10 10 . . . . . 30 . 62 44 9 . . Select Force Hacks 90 | . 60 . 30 . . . . . . . . . . . . . . . . . Disable Machine 390 | . 30 . 60 . . . 60 15 . . . . . 30 . 90 30 . . 75 Destroy Structure 475 | . 8 1 49 2 . . 40 9 . . . . . 47 31 39 48 13 13 175 Advance Influence 450 | . . . . . . . . . . . . . . 450 . . . . . . Partial Spotted 30 | . . . . . . . . . . . . . . 15 . . . . 15 . Lose Combat Pursuer 570 | . 30 . . 15 . 15 60 . . . . . 30 60 . . 165 . . 195 Influence Decreases 7473 | 45 378 39 506 718 . 259 402 374 69 294 . . 65 926 54 484 1103 646 317 794 Entered New Map 1483 | . . 24 . 291 . . 29 84 2 2 . . . . 15 . 107 322 227 380 Time Decay 4658 | 45 378 15 496 387 . 229 213 280 67 282 . . 58 616 32 326 676 254 50 254 Lost Part 417 | . . . 10 . . 30 10 . . 10 . . 7 130 . . 30 10 20 160 Lost Ally 615 | . . . . 40 . . . 10 . . . . . 30 7 158 290 60 20 . Purge Threat 300 | . . . . . . . 150 . . . . . . 150 . . . . . . Squads Dispatched 53 | . 4 . 5 . . . 7 6 . 1 . . . 9 . 4 10 . . 7 Investigation 21 | . 4 . 2 . . . 2 3 . . . . . 3 . 2 5 . . . Extermination 9 | . . . . . . . . 1 . . . . . 5 . 2 . . . 1 Reinforcement 17 | . . . 3 . . . 3 2 . . . . . 1 . . 5 . . 3 Assault 3 | . . . . . . . 2 . . 1 . . . . . . . . . . Garrison 3 | . . . . . . . . . . . . . . . . . . . . 3 Intercept . | . . . . . . . . . . . . . . . . . . . . . Searches Triggered . | . . . . . . . . . . . . . . . . . . . . . Construction Impeded 5 | . . . . . . . 1 . . . . . . . . . 3 . . 1 Haulers Reinforced 1 | . . . . . . . . . . . . . . . . . . . . 1 Active Scanning Responses . | . . . . . . . . . . . . . . . . . . . . . Cargo Convoy Interrupts 1 | . . . . . . . . . . . . . . . . 1 . . . . Stealth | -11 -10 -10 -9 -9 -9 -8 -8 -7 -7 -7 -7 -7 -6 -6 -6 -6 -6 -6 -6 -6 --------- Run | Yrd Mat Min Mat Min Exi Min Mat Fac Low Low Zio Dee Pro Fac Was Fac Ext Cet Arc Hub Distress Signals 21 | . 1 . 4 . . . 6 . . . . . 1 . . 1 2 2 . 4 Communications Jammed 1 | . . . . . . . . . . . . . 1 . . . . . . . Distress Signals . | . . . . . . . . . . . . . . . . . . . . . Times Spotted 322 | . 21 . 41 10 . 13 19 6 4 16 1 6 8 27 7 18 66 10 11 38 Peak Tracking Total 11 | . 4 . 5 4 . 4 5 2 3 5 1 3 3 4 6 11 5 5 9 10 Tactical Retreats 30 | . 1 . . 1 . 1 2 . . . . . 2 4 1 . 7 . . 11 Traps | -11 -10 -10 -9 -9 -9 -8 -8 -7 -7 -7 -7 -7 -6 -6 -6 -6 -6 -6 -6 -6 ------- Run | Yrd Mat Min Mat Min Exi Min Mat Fac Low Low Zio Dee Pro Fac Was Fac Ext Cet Arc Hub Traps Triggered 11 | . 3 . . . . . 1 . . . . . . 4 . 1 2 . . . Indirectly . | . . . . . . . . . . . . . . . . . . . . . Trap Hack Attempts . | . . . . . . . . . . . . . . . . . . . . . Triggered . | . . . . . . . . . . . . . . . . . . . . . Disarmed . | . . . . . . . . . . . . . . . . . . . . . Reprogrammed . | . . . . . . . . . . . . . . . . . . . . . Reused . | . . . . . . . . . . . . . . . . . . . . . Traps Extracted . | . . . . . . . . . . . . . . . . . . . . . Installed 1 | . . . . . . . . . . . . 1 . . . . . . . . Triggered . | . . . . . . . . . . . . . . . . . . . . . Most Traps Carried 1 | . . . . . . . . . . 1 1 1 . . . . . . . . Machines | -11 -10 -10 -9 -9 -9 -8 -8 -7 -7 -7 -7 -7 -6 -6 -6 -6 -6 -6 -6 -6 ---------- Run | Yrd Mat Min Mat Min Exi Min Mat Fac Low Low Zio Dee Pro Fac Was Fac Ext Cet Arc Hub Machines Disabled 36 | . 2 . 4 . . . 4 1 . 2 3 1 . 2 . 6 6 . . 5 Max in Single Turn 3 | . 1 . 1 . . . 3 1 . 1 1 1 . 1 . 1 1 . . 3 Garrison Access 2 | . . . . . . . 1 . . . . . . . . 1 . . . . Network Hub 1 | . . . . . . . . . . . . . . . . . . . . 1 Machines Repaired . | . . . . . . . . . . . . . . . . . . . . . Machines Dismantled 3 | . . . . . . . . . . . 3 . . . . . . . . . Machines Sabotaged . | . . . . . . . . . . . . . . . . . . . . . Overloaded Fab Kills . | . . . . . . . . . . . . . . . . . . . . . Hacking | -11 -10 -10 -9 -9 -9 -8 -8 -7 -7 -7 -7 -7 -6 -6 -6 -6 -6 -6 -6 -6 --------- Run | Yrd Mat Min Mat Min Exi Min Mat Fac Low Low Zio Dee Pro Fac Was Fac Ext Cet Arc Hub Machines Accessed 83 | . 9 . 14 . 2 . 12 6 . . . . . 16 . 8 12 1 1 2 Terminals 51 | . 7 . 9 . . . 8 1 . . . . . 8 . 5 10 1 . 2 Fabricators 6 | . . . . . . . . 1 . . . . . 3 . 2 . . . . Repair Stations 5 | . . . 1 . . . 1 1 . . . . . 1 . . 1 . . . Recycling Units 13 | . 2 . 2 . . . 1 3 . . . . . 4 . . 1 . . . Scanalyzers 4 | . . . 2 . . . 2 . . . . . . . . . . . . . Garrison Access 1 | . . . . . . . . . . . . . . . . 1 . . . . Total Hacks 271 | . 26 . 45 . 2 . 30 21 . . . . . 51 . 32 32 2 25 5 Successful 150 | . 11 . 26 . 2 . 18 10 . . . . . 20 . 22 12 1 25 3 Failed 121 | . 15 . 19 . . . 12 11 . . . . . 31 . 10 20 1 . 2 Catastrophic 15 | . 2 . 1 . . . 1 . . . . . . 6 . 1 2 . . 2 Database Lockouts . | . . . . . . . . . . . . . . . . . . . . . Manual 132 | . 21 . 25 . 1 . 20 9 . . . . . 26 . 15 10 1 . 4 Terminals 156 | . 21 . 23 . . . 23 3 . . . . . 29 . 23 27 2 . 5 Fabricators 21 | . . . . . . . . 4 . . . . . 9 . 8 . . . . Repair Stations 21 | . . . 6 . . . 2 5 . . . . . 5 . . 3 . . . Recycling Units 32 | . 5 . 6 . . . 2 9 . . . . . 8 . . 2 . . . Scanalyzers 13 | . . . 10 . . . 3 . . . . . . . . . . . . . Garrison Access 1 | . . . . . . . . . . . . . . . . 1 . . . . Terminal Hacks 65 | . 5 . 1 . 2 . 5 . . . . . . 7 . 11 7 1 25 1 Record 26 | . . . . . 1 . . . . . . . . . . . . . 25 . Part Schematic 4 | . 1 . 1 . . . 1 . . . . . . 1 . . . . . . Robot Schematic 1 | . 1 . . . . . . . . . . . . . . . . . . . Robot Analysis 5 | . 2 . . . . . 1 . . . . . . . . 2 . . . . Prototype ID Bank 3 | . 1 . . . . . 1 . . . . . . . . . 1 . . . Open Door 6 | . . . . . . . . . . . . . . . . . 5 1 . . Branch Access Points 1 | . . . . . . . . . . . . . . . . 1 . . . . Terminal Index 2 | . . . . . . . . . . . . . . 1 . 1 . . . . Alert Level 1 | . . . . . . . . . . . . . . 1 . . . . . . Unreport Threat 2 | . . . . . . . 1 . . . . . . 1 . . . . . . Locate Traps 3 | . . . . . . . . . . . . . . . . 2 1 . . . Transport Status 2 | . . . . . . . . . . . . . . 1 . 1 . . . . Recall Investigation 2 | . . . . . . . . . . . . . . 1 . 1 . . . . Hauler Manifests 2 | . . . . . . . 1 . . . . . . . . 1 . . . . Registered Components 1 | . . . . . . . . . . . . . . . . 1 . . . . Zone Layout 3 | . . . . . . . . . . . . . . 1 . 1 . . . 1 Proto ID Catalog 1 | . . . . . 1 . . . . . . . . . . . . . . . Fabricator Hacks 13 | . . . . . . . . 3 . . . . . 5 . 5 . . . . Network Status 4 | . . . . . . . . 1 . . . . . 1 . 2 . . . . Load Schematic 6 | . . . . . . . . 2 . . . . . 2 . 2 . . . . Build 3 | . . . . . . . . . . . . . . 2 . 1 . . . . Repair Station Hacks 16 | . . . 6 . . . 2 4 . . . . . 3 . . 1 . . . Scan Component 9 | . . . 3 . . . 1 2 . . . . . 2 . . 1 . . . Repair 7 | . . . 3 . . . 1 2 . . . . . 1 . . . . . . Recycling Unit Hacks 8 | . 1 . 2 . . . 2 1 . . . . . 2 . . . . . . Retrieve Components 8 | . 1 . 2 . . . 2 1 . . . . . 2 . . . . . . Scanalyzer 12 | . . . 10 . . . 2 . . . . . . . . . . . . . Insert Component 6 | . . . 5 . . . 1 . . . . . . . . . . . . . Analyze 6 | . . . 5 . . . 1 . . . . . . . . . . . . . Garrison Access Hacks 1 | . . . . . . . . . . . . . . . . 1 . . . . Seal Access 1 | . . . . . . . . . . . . . . . . 1 . . . . Unauthorized Hacks 35 | . 5 . 7 . . . 7 2 . . . . . 3 . 5 4 . . 2 Terminals 27 | . 3 . 6 . . . 7 1 . . . . . 1 . 4 3 . . 2 Track 2 | . . . . . . . . . . . . . . . . . 1 . . 1 Assimilate 2 | . . . . . . . . . . . . . . . . 1 1 . . . Botnet 10 | . 1 . 2 . . . 1 1 . . . . . 1 . 2 1 . . 1 Operators 5 | . 2 . 1 . . . 1 . . . . . . . . 1 . . . . Skim 8 | . . . 3 . . . 5 . . . . . . . . . . . . . Fabricators 3 | . . . . . . . . . . . . . . 2 . 1 . . . . Prioritize 2 | . . . . . . . . . . . . . . 1 . 1 . . . . Haulers 1 | . . . . . . . . . . . . . . 1 . . . . . . Repair Stations 1 | . . . . . . . . . . . . . . . . . 1 . . . Patch 1 | . . . . . . . . . . . . . . . . . 1 . . . Recycling Units 4 | . 2 . 1 . . . . 1 . . . . . . . . . . . . Mask 1 | . . . . . . . . 1 . . . . . . . . . . . . Tunnel 3 | . 2 . 1 . . . . . . . . . . . . . . . . . Scanalyzers . | . . . . . . . . . . . . . . . . . . . . . Garrison Access . | . . . . . . . . . . . . . . . . . . . . . Data Cores Recovered . | . . . . . . . . . . . . . . . . . . . . . Used . | . . . . . . . . . . . . . . . . . . . . . Hacking Detections 72 | . 7 . 12 . . . 11 6 . . . . . 15 . 7 10 2 . 2 Full Trace Events 15 | . 2 . 2 . . . . 3 . . . . . 3 . 2 3 . . . Feedback Events 2 | . . . . . . . . 1 . . . . . 1 . . . . . . Corruption 2 | . . . . . . . . 1 . . . . . 1 . . . . . . Feedback Blocked . | . . . . . . . . . . . . . . . . . . . . . Robot Schematics Acquired 4 | . 1 . . . . . . . . . 3 . . . . . . . . . Robots Built . | . . . . . . . . . . . . . . . . . . . . . Authchips . | . . . . . . . . . . . . . . . . . . . . . Time . | . . . . . . . . . . . . . . . . . . . . . Total Robot Build Rating . | . . . . . . . . . . . . . . . . . . . . . Part Schematics Acquired 24 | . 1 . 6 . . . 2 . . . 14 . . 1 . . . . . . Parts Built 5 | . . . . . . . . . . . . . . 4 . 1 . . . . Authchips 1 | . . . . . . . . . . . . . . 1 . . . . . . Time 179 | . . . . . . . . . . . . . . 95 . 84 . . . . Total Part Build Rating 26 | . . . . . . . . . . . . . . 20 . 6 . . . . Parts Repaired 7 | . . . 3 . . . 1 2 . . . . . 1 . . . . . . Time 275 | . . . 134 . . . 38 64 . . . . . 39 . . . . . . Parts Recycled . | . . . . . . . . . . . . . . . . . . . . . Recycled Matter . | . . . . . . . . . . . . . . . . . . . . . Retrieved Matter . | . . . . . . . . . . . . . . . . . . . . . Retrieved Components 65 | . 10 . 20 . . . 15 10 . . . . . 10 . . . . . . Parts Scanalyzed 6 | . . . 5 . . . 1 . . . . . . . . . . . . . Part Schematics Acquired 6 | . . . 5 . . . 1 . . . . . . . . . . . . . Parts Damaged 2 | . . . 2 . . . . . . . . . . . . . . . . . Bothacking | -11 -10 -10 -9 -9 -9 -8 -8 -7 -7 -7 -7 -7 -6 -6 -6 -6 -6 -6 -6 -6 ------------ Run | Yrd Mat Min Mat Min Exi Min Mat Fac Low Low Zio Dee Pro Fac Was Fac Ext Cet Arc Hub Used RIF Installer . | . . . . . . . . . . . . . . . . . . . . . Robots Hacked 13 | . . . . . 4 . . 1 . . 4 . . 4 . . . . . . Non-combat 8 | . . . . . 3 . . . . . 1 . . 4 . . . . . . Combat 5 | . . . . . 1 . . 1 . . 3 . . . . . . . . . Robot Hacks Applied 13 | . . . . . 4 . . 1 . . 4 . . 4 . . . . . . parse_system 9 | . . . . . 4 . . 1 . . 4 . . . . . . . . . find_chute 2 | . . . . . . . . . . . . . . 2 . . . . . . find_fabricator 1 | . . . . . . . . . . . . . . 1 . . . . . . find_recycling 1 | . . . . . . . . . . . . . . 1 . . . . . . Relay Couplers Released 4 | . . . . . . . 4 . . . . . . . . . . . . . Machine Destruction 4 | . . . . . . . 4 . . . . . . . . . . . . . Fabnet Peak Effective % . | . . . . . . . . . . . . . . . . . . . . . Robots Rewired 14 | . . . . . . . . . . . . . . 1 . . 13 . . . Allies Hacked . | . . . . . . . . . . . . . . . . . . . . . Hacks Repelled . | . . . . . . . . . . . . . . . . . . . . . Allies | -11 -10 -10 -9 -9 -9 -8 -8 -7 -7 -7 -7 -7 -6 -6 -6 -6 -6 -6 -6 -6 -------- Run | Yrd Mat Min Mat Min Exi Min Mat Fac Low Low Zio Dee Pro Fac Was Fac Ext Cet Arc Hub Total Allies 47 | . . . . 3 . . . . . . . . . 1 19 . 19 5 . . Largest Group 19 | . . . . 3 . . . . . . . . . 1 19 11 6 6 5 . Highest-Rated Group 684 | . . . . 40 . . . . . . . . . 29 684 396 254 639 524 . Highest-Rated Ally 159 | . . . . 16 . . . . . . . . . 29 50 50 159 159 159 . Total Orders 6 | . . . . . . . . 3 . . . . . 2 . . . . 1 . GUARD 1 | . . . . . . . . . . . . . . . . . . . 1 . EXPLORE 5 | . . . . . . . . 3 . . . . . 2 . . . . . . Ally Attacks 372 | . . . . 14 . . . . . . . . . 7 109 61 101 35 45 . Total Damage 14329 | . . . . 66 . . . . . . . . . 58 5871 2658 2412 1498 1766 . Kills 61 | . . . . 1 . . . . . . . . . . 12 18 10 8 12 . Allies Corrupted 2 | . . . . . . . . . . . . . . . . 2 . . . . Allies Melted 3 | . . . . . . . . . . . . . . . . 2 1 . . . Intel | -11 -10 -10 -9 -9 -9 -8 -8 -7 -7 -7 -7 -7 -6 -6 -6 -6 -6 -6 -6 -6 ------- Run | Yrd Mat Min Mat Min Exi Min Mat Fac Low Low Zio Dee Pro Fac Was Fac Ext Cet Arc Hub Active Infowar (turns) 27680 | 243 1498 520 4604 1410 917 1047 3048 1193 1061 2025 4337 786 1892 1981 160 641 317 . . . Optics 2 | . . . 2 . . . . . . . . . . . . . . . . . Sensors 2324 | . . . . . . . . . . . . . . 1206 160 641 317 . . . Terrain 7256 | . . . 4601 1 . 377 2277 . . . . . . . . . . . . . Structural 10059 | . . 15 . . . . . . 961 1440 4333 786 1857 667 . . . . . . Seismic 22438 | 243 1498 505 4565 1409 917 1047 1249 1193 1058 1934 4336 . 1857 627 . . . . . . Jamming 8599 | . . . . . . . . . 1031 1254 4336 . 1595 383 . . . . . . ECM 155 | . . . . . . . . . . 155 . . . . . . . . . . Robot Analysis Total 5 | . 2 . . . . . 1 . . . . . . . . 2 . . . . Derelict Logs Recovered 7 | . . 2 . 1 . . . . . 2 2 . . . . . . . . . Drone Launches 5 | . . . . . . . . 3 . . . . . 2 . . . . . . Drone Recoveries 2 | . . . . . . . . 2 . . . . . . . . . . . . Exploration | -11 -10 -10 -9 -9 -9 -8 -8 -7 -7 -7 -7 -7 -6 -6 -6 -6 -6 -6 -6 -6 ------------- Run | Yrd Mat Min Mat Min Exi Min Mat Fac Low Low Zio Dee Pro Fac Was Fac Ext Cet Arc Hub Turns Passed 34648 | 354 1498 522 4604 1422 917 1202 3442 1462 1061 2114 4341 2910 1936 2046 171 778 2654 545 116 553 Spaces Moved 15740 | 176 817 280 1534 404 274 430 1298 646 522 858 1308 1165 743 1997 300 1011 1437 278 67 195 Core 76 | 9 . . . . . . . . . . 66 . . . . . . . . 1 Treads 7699 | 167 817 280 1478 404 274 160 1179 132 . 69 1242 975 . . . 22 . 239 67 194 Legs 1568 | . . . . . . . . . . . . . 109 27 . . 1393 39 . . Wheels 2972 | . . . 56 . . 270 119 368 522 789 . . . 693 . 111 44 . . . Hover 824 | . . . . . . . . . . . . 190 634 . . . . . . . Flight 2601 | . . . . . . . . 146 . . . . . 1277 300 878 . . . . Fastest Speed 26 | 50 160 160 160 330 330 215 200 26 190 190 242 118 118 31 32 32 100 120 160 50 Average Speed 188 | 154 160 160 257 330 330 257 241 182 190 209 323 232 226 66 32 60 124 154 160 159 Slowest Speed 1850 | 160 160 160 330 330 330 330 325 245 220 243 1850 560 480 200 104 240 200 160 160 160 Overloaded Moves . | . . . . . . . . . . . . . . . . . . . . . Propulsion Burnouts . | . . . . . . . . . . . . . . . . . . . . . Robots Hopped 25 | . . . . . . . . . . . . . . 21 2 2 . . . . Potential Cave-ins 2 | . . . . . . . . . . 2 . . . . . . . . . . Cave-ins Triggered . | . . . . . . . . . . . . . . . . . . . . . Exploration Rate (%) 68 | 10 99 65 96 98 65 67 89 16 77 90 87 79 74 42 95 19 97 74 79 20 Regions Visited 20 Branch Regions 13 Pre-discovered Areas 8 | . 2 1 1 1 1 . . . . . 2 . . . . . . . . . Known Exits Taken 5 | . . . . . . 1 1 1 . . . . 1 . . 1 . . . . Unknown Exits Taken 13 | 1 1 1 1 1 1 . . . 1 1 1 1 . . . . 1 1 1 . Scrap Searched 16 | . . . . 1 . 2 . . 6 3 . . 4 . . . . . . . Spaces Dug 214 | . 4 1 9 . . . 12 9 . 44 . 9 64 45 . 15 2 . . . Terrain Destroyed 630 | . 7 1 40 2 . . 45 9 . 75 . 18 74 47 . 15 77 . 2 218 Melee 77 | . . . 4 . . . . 9 . 4 . . . 45 . 15 . . . . Projectile 148 | . 4 1 10 2 . . 5 . . 19 . 18 24 2 . . 19 . 2 42 AOE 405 | . 3 . 26 . . . 40 . . 52 . . 50 . . . 58 . . 176 Terrain Rammed . | . . . . . . . . . . . . . . . . . . . . . Walls Destroyed . | . . . . . . . . . . . . . . . . . . . . . Machines Disabled . | . . . . . . . . . . . . . . . . . . . . . Actions | -11 -10 -10 -9 -9 -9 -8 -8 -7 -7 -7 -7 -7 -6 -6 -6 -6 -6 -6 -6 -6 --------- Run | Yrd Mat Min Mat Min Exi Min Mat Fac Low Low Zio Dee Pro Fac Was Fac Ext Cet Arc Hub Total 19230 | 214 922 348 1967 466 289 484 1558 888 579 1130 1366 1331 945 2496 371 1126 1996 387 70 297 Wait 1395 | 2 26 55 191 41 . 12 131 63 23 193 3 12 130 166 59 44 189 38 1 16 Move 15675 | 175 816 279 1533 403 273 429 1297 645 521 857 1307 1164 742 1958 296 1006 1436 277 66 195 Hop 21 | . . . . . . . . . . . . . . 18 1 2 . . . . Pick Up 229 | 7 13 1 35 . 3 3 21 43 6 10 6 22 5 24 1 5 14 10 . . Fast Attach 187 | 7 . 2 9 . . 6 16 10 3 3 . 20 6 49 4 9 24 13 . 6 Attach 89 | . . . 7 . . 1 7 9 3 7 2 9 4 16 . 7 4 7 . 6 Detach 66 | . . . 4 . . . 3 10 4 2 . 7 2 17 1 6 4 6 . . Swap 257 | . 9 7 35 8 2 7 21 26 6 24 10 22 11 33 2 3 23 5 . 3 Drop 355 | . 11 3 32 1 7 6 33 46 6 12 6 37 5 70 7 16 32 24 . 1 Fire 617 | 23 46 1 114 13 . 17 27 16 5 14 . 37 36 32 . . 158 6 3 69 Melee 169 | . . . 4 . 4 3 2 20 2 8 5 . 4 83 . 28 5 1 . . Ram 1 | . . . . . . . . . . . . . . . . . . . . 1 Kick 4 | . . . . . . . . . . . . . . . . . 4 . . . Crush 4 | . 1 . 3 . . . . . . . . . . . . . . . . . Escape Stasis 43 | . . . . . . . . . . . . . . 30 . . 13 . . . Rewire 90 | . . . . . . . . . . . . . . . . . 90 . . . Trap 1 | . . . . . . . . . . . . 1 . . . . . . . . Miscellaneous 27 | . . . . . . . . . . . 27 . . . . . . . . . Route ------- -11/Scrapyard -10/Materials (discovered 6 exits: *Mat x3 / [*Min x2] / [*Sub]) -10/Mines -9/Materials (discovered 4 exits: *Mat x3 / [*Min]) -9/Mines (discovered 3 exits: *Mat x2 / *Exi) -9/Exiles -8/Mines -8/Materials (discovered 3 exits: *Fac x3) -7/Factory (discovered 5 exits: Fac x2 / [*Sto] / *Low x2) -7/Lower Caves -7/Lower Caves (discovered 2 exits: *Fac / [*Zio]) -7/Zion (discovered 2 exits: [*Dee] / [*Pro]) -7/Deep Caves -6/Proximity Caves -6/Factory (discovered 4 exits: [*Fac x2] / *Low / *Ext) -6/Waste -6/Factory (discovered 4 exits: *Low x2 / *Ext x2) -6/Extension (discovered 3 exits: [*Fac x2] / *Cet) -6/Cetus (discovered 2 exits: [*Fac] / *Arc) -6/Archives (discovered 2 exits: *Hub x2) -6/Hub_04(d) (discovered 1 exit: [*Fac]) History --------- Turn | Location | Event 7 | -11/Scrapyard | Discovered new exit (range 15) 355 | -11/Scrapyard | Entered Materials 356 | -10/Materials | Build established: Mutant 661 | -10/Materials | Discovered new exit (range 16) 844 | -10/Materials | Discovered new exit (range 5) 1065 | -10/Materials | Discovered new exit (range 15) 1138 | -10/Materials | Discovered new exit (range 12) 1281 | -10/Materials | Discovered new exit (range 16) 1512 | -10/Materials | Discovered new exit (range 13) 1853 | -10/Materials | Entered Mines 1869 | -10/Mines | Learned location of 1 exit from Materials 1887 | -10/Mines | Met a Derelict bent on vengeance 1949 | -10/Mines | Learned location of Zion (-7) 2066 | -10/Mines | Found a hidden stash of uninstalled traps 2092 | -10/Mines | Discovered new exit (range 12) 2206 | -10/Mines | Assembled infested the area 2211 | -10/Mines | Assisted by a Guerilla fighting off Assembled 2375 | -10/Mines | Entered Materials 2375 | -9/Materials | Evolved 2 slots: Utility x2 2376 | -9/Materials | Identified exit to Materials 2799 | -9/Materials | Repaired Lgt. Cannon 3489 | -9/Materials | Discovered new exit (range 8) 3849 | -9/Materials | Discovered exit to Materials (range 13) 5377 | -9/Materials | Build established: Scavenger-Mutant 5492 | -9/Materials | Discovered exit to Materials (range 16) 5984 | -9/Materials | Repaired Broken Imp. VTOL Module? 6072 | -9/Materials | Repaired Imp. Light Cannon? 6979 | -9/Materials | Entered Mines 7480 | -9/Mines | Assisted by bots powering up and referring to "LRC-V3" 7523 | -9/Mines | Discovered exit to Materials (range 14) 7774 | -9/Mines | Lost 3 allies 8385 | -9/Mines | Deemed a non-threat by the Exiles lab entrance 8385 | -9/Mines | Discovered new exit (range 5) 8401 | -9/Mines | Entered Exiles 8481 | -9/Exiles | Met 8R-AWN 8538 | -9/Exiles | Met EX-HEX 8675 | -9/Exiles | Met EX-DEC 8818 | -9/Exiles | Met EX-BIN 8866 | -9/Exiles | Aligned with FarCom system 8869 | -9/Exiles | Given EX-Vault access code 8945 | -9/Exiles | Opened EX-Vault 8977 | -9/Exiles | Found XL Autogun Array 8989 | -9/Exiles | Found AWS/Gauss 8997 | -9/Exiles | Found Supersonic Drone Bay 9067 | -9/Exiles | Warned to stay clear of 0b10 Research branches 9279 | -9/Exiles | Discovered new exit (range 14) 9318 | -9/Exiles | Stole three prototypes: Supersonic Drone Bay, AWS/Gauss, XL Autogun Array 9318 | -9/Exiles | Entered Mines 10411 | -8/Mines | Build established: Scavenger-Skirmisher 10439 | -8/Mines | Discovered exit to Materials (range 7) 10520 | -8/Mines | Entered Materials 10520 | -8/Materials | Evolved 2 slots: Propulsion x1, Utility x1 10596 | -8/Materials | Repaired Arm. Treads? 11111 | -8/Materials | Discovered new exit (range 8) 11266 | -8/Materials | Build established: Skirmisher 11588 | -8/Materials | Met 7R-MNS 11609 | -8/Materials | Discovered new exit (range 10) 12763 | -8/Materials | Build established: Hacker-Skirmisher 13094 | -8/Materials | Build established: Hacker-Mutant 13219 | -8/Materials | Identified exit to Factory 13290 | -8/Materials | Learned location of 1 exit from Storage 13352 | -8/Materials | Learned location of 1 exit from Storage 13402 | -8/Materials | Learned Storage garrison access intel 13442 | -8/Materials | Learned location of 2 exits from Factory 13473 | -8/Materials | Learned location of 1 exit from Recycling 13566 | -8/Materials | Learned Storage stockpile data 13658 | -8/Materials | Destroyed 8 combat bots 13962 | -8/Materials | Entered Factory 13962 | -7/Factory | Evolved 2 slots: Power x1, Propulsion x1 13963 | -7/Factory | Caught up to 7R-MNS 13963 | -7/Factory | Identified exit to Lower Caves 13964 | -7/Factory | Identified exit to Factory 13964 | -7/Factory | FarCom data flow suspended 14015 | -7/Factory | Discovered new exit (range 56) 14474 | -7/Factory | Build established: Scavenger-Mutant 15170 | -7/Factory | Repaired Lgt. Treads? 15237 | -7/Factory | Repaired Arm. Treads? 15424 | -7/Factory | Entered Lower Caves 15445 | -7/Lower Caves | Encountered a Warlord checkpoint 15900 | -7/Lower Caves | Entered a destroyed Warlord outpost 16345 | -7/Lower Caves | Discovered new exit (range 10) 16485 | -7/Lower Caves | Entered another Lower Caves area 16936 | -7/Lower Caves | Discovered exit to Factory (range 15) 17212 | -7/Lower Caves | Attracted the attention of an 0b10 outpost 18321 | -7/Lower Caves | Learned Factory security intel 18401 | -7/Lower Caves | Attacked by a delusional Derelict stockpiling parts 18495 | -7/Lower Caves | Discovered new exit (range 14) 18599 | -7/Lower Caves | Entered Zion 18634 | -7/Zion | Found CR-A16's Pointy Stick 18715 | -7/Zion | Learned location of 1 exit from Proximity Caves 18734 | -7/Zion | Discovered new exit (range 8) 19075 | -7/Zion | Received a visual enhancement algorithm 19155 | -7/Zion | Build established: Infiltrator-Mutant 19244 | -7/Zion | Learned location of Data Miner (-6) 19399 | -7/Zion | Learned location of 1 exit from Proximity Caves 19813 | -7/Zion | Found GAL Module 20386 | -7/Zion | Met Imprinter 22915 | -7/Zion | Discovered new exit (range 3) 22915 | -7/Zion | Saw the warning signs outside the Deep Caves entrance 22940 | -7/Zion | Entered Deep Caves 23225 | -7/Deep Caves | Build established: Mutant 23350 | -7/Deep Caves | Attacked by Z-Imprinter 23372 | -7/Deep Caves | Destroyed Z-Imprinter 23480 | -7/Deep Caves | Found Prototype Device 23480 | -7/Deep Caves | Identified Zio. Metafield Generator 23515 | -7/Deep Caves | Found Prototype Protection 23515 | -7/Deep Caves | Identified Zio. Weapon Casing 23692 | -7/Deep Caves | Build established: Scavenger-Mutant 24176 | -7/Deep Caves | Z-Facility disabled 24420 | -7/Deep Caves | Discovered new exit (range 8) 25096 | -7/Deep Caves | Spotted AG-88098 25102 | -7/Deep Caves | Core integrity fell below 50% 25147 | -7/Deep Caves | Destroyed AG-88098 25175 | -7/Deep Caves | Lost 4 parts (3n1u) 25850 | -7/Deep Caves | Entered Proximity Caves 25853 | -6/Proximity Caves | Spotter reported a threat 26015 | -6/Proximity Caves | Spotter reported a threat 26236 | -6/Proximity Caves | Spotter reported a threat 26500 | -6/Proximity Caves | Encountered a Derelict sapper outpost 26602 | -6/Proximity Caves | Lost 3 parts (1p2n) 26609 | -6/Proximity Caves | Core integrity fell below 20% 26891 | -6/Proximity Caves | Build established: Infiltrator-Mutant 27545 | -6/Proximity Caves | Found DCF Scrap (14 items) 27786 | -6/Proximity Caves | Entered Factory 27786 | -6/Factory | Evolved 2 slots: Propulsion x1, Utility x1 27831 | -6/Factory | Build established: Derelict-Mutant 28159 | -6/Factory | Build established: Scavenger-Mutant 28412 | -6/Factory | AWS/Gauss suddenly broke down 28483 | -6/Factory | Lost 7 parts (2p2n3u) 28537 | -6/Factory | Lost 3 parts (1n2u) 29175 | -6/Factory | Discovered new exit (range 16) 29180 | -6/Factory | Fabricated Field Propulsion Drive? 29283 | -6/Factory | Repaired Broken Nuclear Pulse Array 29622 | -6/Factory | Discovered new exit (range 13) 29629 | -6/Factory | Identified exit to Lower Caves 29675 | -6/Factory | Discovered new exit (range 8) 29742 | -6/Factory | Discovered new exit (range 14) 29747 | -6/Factory | Identified exit to Extension 29756 | -6/Factory | Build established: Hacker-Sprinter 29777 | -6/Factory | Fabricated Powered Armor? 29832 | -6/Factory | Sucked down chute 29832 | -6/Factory | Entered Waste 29842 | -6/Waste | Spotted C-40 Crusher 29847 | -6/Waste | Spotted C-40 Crusher 29861 | -6/Waste | Spotted C-40 Crusher 29862 | -6/Waste | Spotted C-40 Crusher 29896 | -6/Waste | Spotted C-40 Crusher 29896 | -6/Waste | Spotted C-40 Crusher 29910 | -6/Waste | Warlord forces began an assault 29949 | -6/Waste | Allies destroyed C-40 Crusher 29952 | -6/Waste | Allies destroyed C-40 Crusher 29957 | -6/Waste | Allies destroyed C-40 Crusher 29961 | -6/Waste | Discovered new exit (range 12) 29978 | -6/Waste | Identified exit to Factory 29997 | -6/Waste | Lost 7 allies 30003 | -6/Waste | Entered Factory 30003 | -6/Factory | Accompanied by 11 allies 30066 | -6/Factory | Discovered exit to Lower Caves (range 6) 30203 | -6/Factory | Fabricated Imp. KE Penetrator? 30606 | -6/Factory | Build established: Scavenger-Mutant 30732 | -6/Factory | Cargo convoy interrupted 30737 | -6/Factory | P-60 Hacker assimilated allied YI-UZB(m) 30774 | -6/Factory | Lost 4 allies 30781 | -6/Factory | Entered Extension 31456 | -6/Extension | Disrupted transfer network 31548 | -6/Extension | Rescued a captive Derelict 31841 | -6/Extension | Spotted B-75 Beast 31857 | -6/Extension | Destroyed B-75 Beast 31884 | -6/Extension | Spotted B-75 Beast 31899 | -6/Extension | Allies destroyed B-75 Beast 31919 | -6/Extension | Destroyed 7 combat bots 31927 | -6/Extension | Discovered new exit (range 3) 32046 | -6/Extension | Rescued a captive Derelict 32047 | -6/Extension | Rescued a captive Derelict 32151 | -6/Extension | Lost 3 allies 32867 | -6/Extension | Lost 3 allies 33009 | -6/Extension | Rescued a captive Derelict 33138 | -6/Extension | Rescued A7 33410 | -6/Extension | Discovered new exit (range 16) 33410 | -6/Extension | Discovered new exit (range 16) 33435 | -6/Extension | Entered Cetus 33435 | -6/Cetus | Accompanied by 4 allies (A7) 33440 | -6/Cetus | Acquired a Cetus Manufacturing Module code from A7 33451 | -6/Cetus | Spotted Cetus Guard 33451 | -6/Cetus | Spotted Cetus Guard 33458 | -6/Cetus | Spotted Cetus Guard 33459 | -6/Cetus | Spotted Cetus Guard 33462 | -6/Cetus | Allies destroyed Cetus Guard 33467 | -6/Cetus | Allies destroyed Cetus Guard 33467 | -6/Cetus | Allies destroyed Cetus Guard 33475 | -6/Cetus | Allies destroyed Cetus Guard 33510 | -6/Cetus | System corruption reached 10% 33602 | -6/Cetus | Started Cetus Manufacturing Module 33614 | -6/Cetus | Escorted A7 to Cetus Mainframe 33627 | -6/Cetus | Manufactured an Enhanced Grunt 33652 | -6/Cetus | Manufactured an Enhanced Grunt 33677 | -6/Cetus | Manufactured an Enhanced Grunt 33702 | -6/Cetus | Manufactured an Enhanced Grunt 33727 | -6/Cetus | Manufactured an Enhanced Grunt 33743 | -6/Cetus | Discovered new exit (range 15) 33776 | -6/Cetus | Spotted Cetus Guard 33776 | -6/Cetus | Spotted Cetus Guard 33779 | -6/Cetus | Spotted Cetus Guard 33780 | -6/Cetus | Spotted Cetus Guard 33784 | -6/Cetus | Allies destroyed Cetus Guard 33793 | -6/Cetus | Allies destroyed Cetus Guard 33798 | -6/Cetus | Allies destroyed Cetus Guard 33798 | -6/Cetus | Destroyed Cetus Guard 33807 | -6/Cetus | Found Prototype Device 33807 | -6/Cetus | Identified Exp. Thermal Shield 33835 | -6/Cetus | Discovered new exit (range 15) 33851 | -6/Cetus | Met Revision 17 33980 | -6/Cetus | Entered Archives 33980 | -6/Archives | Accompanied by 5 allies (A7) 33985 | -6/Archives | Received a hacking code to weaken MAIN.C 34003 | -6/Archives | Met Zhirov 34009 | -6/Archives | Reinforcements dispatched to Archives 34011 | -6/Archives | Unable to access archive contents 34014 | -6/Archives | Discovered new exit (range 16) 34028 | -6/Archives | Read partially decrypted archive contents 34033 | -6/Archives | Discovered new exit (range 15) 34054 | -6/Archives | Reinforcements dispatched to Archives 34056 | -6/Archives | Zhirov warped through subspace 34074 | -6/Archives | Zhirov detonated Archives 34096 | -6/Archives | Entered Hub_04(d) 34105 | -6/Hub_04(d) | Lost 4 allies 34121 | -6/Hub_04(d) | Disrupted transfer network 34172 | -6/Hub_04(d) | Discovered new exit (range 9) 34252 | -6/Hub_04(d) | Garrison activated, responded to threat 34295 | -6/Hub_04(d) | Core integrity fell below 50% 34386 | -6/Hub_04(d) | Lost 8 parts (2p1n4u1w) 34598 | -6/Hub_04(d) | Network Hub disabled 34623 | -6/Hub_04(d) | Spotted Lightning 34637 | -6/Hub_04(d) | Spotted Lightning 34638 | -6/Hub_04(d) | Spotted Lightning 34639 | -6/Hub_04(d) | Spotted Lightning 34640 | -6/Hub_04(d) | System corruption reached 30% 34641 | -6/Hub_04(d) | Spotted Lightning 34643 | -6/Hub_04(d) | Spotted Lightning 34646 | -6/Hub_04(d) | Core integrity fell below 20% 34648 | -6/Hub_04(d) | Released all parts (5) 34649 | -6/Hub_04(d) | Destroyed by Lightning with EMDS Last Messages --------------- 34643_ Slug penetrates Wall. 34643_ Penetrated by EMDS Slug. 34645_ Adv. KE Penetrator destroyed. 34645_ Penetrated by EMDS Slug. 34645_ Centrium Heavy Treads destroyed. 34646_ Penetrated by EMDS Slug. 34646_ Adv. KE Penetrator destroyed. 34647_ EMDS Slug penetrates Wall. 34647_ Penetrated by EMDS Slug. 34647_ Mic. Nuclear Core destroyed. 34648_ Penetrated by EMDS Slug. 34648_ Released Lgt. Treads. 34648_ Released Lrg. Storage Unit. 34648_ Released Adv. Melee Analysis Suite. 34648_ Released Centrium Heavy Treads. 34648_ Released Core Shielding. 34649_ Dropped Zio. Biocell. 34649_ Penetrated by EMDS Slug. 34649_ A-15 Conveyor destroyed. 34649_ Penetrated by EMDS Slug. Map ----- +----------------------------------------------------+ | ????????????????????????????????????????????????? | | ????????????????????????????????????????????????? | | ????????????????????????????????????????????????? | | ????????????????????????????????????????????????? | | ????????????????????????????????????????????????? | | ????????????????????????????????????????????????? | | ????????????????????????????????????????????????? | | ????????????????????????????????????????????????? | | ????????????????????????????????????????????????? | | ????????????????????????????????????????????????? | | ????????????????????????????????????????????????? | | ????????????????????????????##??????????????????? | | ?????????????????????#######;##?????????????????? | | ????? # ???????????# #?????????????????? | | ????? " ????????# #?????????????????? | | ????"""" " ####??# #??#??????????????? | | ???? " "!" ""### ## #??????????????? | | ???? "%= " hh ;" #??????????????? | | ???? " %""" ""##" #?????????????????? | | ???? " ="#####?## h #?????????????????? | | ?????! " ??????????# #??########???????? | | ?????% ??????????????# # #???????? | | ??????????????######?###;;;;;#; #???????? | | ??????????????# #[]! # #???????? | | ??????????????# #!!= # #???????? | | ??????????????# /@!= + #???????? | | ??????????????# #! # #???????? | | ??????????????# """" #! # #???????? | | ????????????????"""" ? ## ##? #???????? | | ?????????????????"""?? ??# ! ############???????? | | ??????????????????"??? ??# %!## #????????? | | ?????????????????????##??# ! ## #????????? | | ?????????????????????????# ## #????????? | | ?????????????????????????# #" #?####???? | | ?????????????????????????# ;# # ###?? | | ?????????????????????????# !########+## """#? | | ?????????????????????????# *###### "#? | | # #??????# "###########[ !;!#"## "#? | | # ######## "## !"=![!%% * [ #? | | # + "## ! = ===%!=%""###+## """#? | | # ###### ##=[ !%=#[!=##* %! # ###?? | | # #????# "#!%* !!#% ## #?####???? | | # #????# "#"!" " " ## #????????? | | # #????# "## "" # ## #????????? | | #/##+###??# ## """" " ## ! #????????? | | #??# "## """" # ## #????????? | | " """ #??# "#"% # ## [#????????? | | " #??# "####+###""# ## #????????? | | T #??# ## # #?# #######%[ #????????? | | " #??###/##### #?#########+##+##########?#?? | +----------------------------------------------------+ Best States ------------- Heat Dissipation 63 Energy Generation 45 Energy Capacity 750 Matter Stores 300 Matter Capacity 300 Sight Range 16 Robot Scan Range 15 Terrain Scan Range 16 Terrain Scan Density 10 ECM Strength 1 Jamming Range 12 Additional Mass Support 9 Armor Coverage 1000 Resistance: EM 25 Core Shielding 20 Propulsion Shielding 66 Utility Shielding 66 Weapon Shielding 100 Phase Shifting 5 Evasion (%) 74 Targeting Accuracy 6 Melee Accuracy 8 Recoil Reduction 5 Offensive Hacking 30 Defensive Hacking 12 Authchip Count 1 Item Schematics ----------------- Huge Storage Unit | -10/Materials | Hacked ECM Suite | -9/Materials | Hacked Imp. VTOL Module | -9/Materials | Scanalyzed Plasma Cutter | -9/Materials | Scanalyzed Hacking Suite | -9/Materials | Scanalyzed Arm. Treads | -9/Materials | Scanalyzed Seismic Detector | -9/Materials | Scanalyzed System Shield | -8/Materials | Hacked Mni. Grenade Launcher | -8/Materials | Scanalyzed Spear | -7/Zion | Archive Adv. Heat Sink | -7/Zion | Archive Coil Gun | -7/Zion | Archive Coolant Injector | -7/Zion | Archive Imp. Trap Scanner | -7/Zion | Archive Component Analysis Suite | -7/Zion | Archive Field Propulsion Drive | -7/Zion | Archive Matter Compressor | -7/Zion | Archive Core Analyzer | -7/Zion | Archive Power Maul | -7/Zion | Archive Fission Core | -7/Zion | Archive Plasma Cannon | -7/Zion | Archive Imp. Shock Absorption System | -7/Zion | Archive Imp. KE Penetrator | -7/Zion | Archive Powered Armor | -6/Factory | Hacked Robot Schematics ------------------ M-13 Machinist | -10/Materials | Hacked B-36 Bruiser | -7/Zion | Archive L-31 Rogue | -7/Zion | Archive L-41 Fighter | -7/Zion | Archive Fabricated ------------ Field Propulsion Drive | x2 | -6/Factory Powered Armor | x2 | -6/Factory | Authchip Imp. KE Penetrator | x1 | -6/Factory Repaired ---------- Lgt. Cannon | 50% | -9/Materials Imp. VTOL Module | 99% | -9/Materials | Broken Imp. Light Cannon | 7% | -9/Materials Arm. Treads | 60% | -8/Materials Lgt. Treads | 17% | -7/Factory Arm. Treads | 29% | -7/Factory Nuclear Pulse Array | 25% | -6/Factory | Broken Alien Tech Used ----------------- None Achievements -------------- Are We The Baddies? Challenges ------------ None Game ------ Seed DeflectorDeuteriumClaw Manual? 0 Play Time 05:45:14 Cumulative 366.0 hours Start 2025.05.10 @ 20:16:42 End 2025.05.11 @ 15:19:38 Sessions 3 Manual Loads 0 Difficulty Rogue Special Mode None Game No. 177 Rogue 114 Adventurer 63 Explorer 0 Win Type - Total 8 Types 7/0/0/1/0/0/0/0/0/0 Lore% 84 Gallery% 75 Achievement% 63 Wizard Run 0 Options --------- Layout 2 ASCII 0 Keyboard 1 Movement Numpad Keybinds 0 Fullscreen 1 Font 24/Terminus Map View 50x44 Zoom Use 0% Tactical HUD 1 Map Filters NONE Filters NONE Steam 1 RUN: a1c0eead-decf-4e78-b327-83f9d733b1f1